Workbook

Sheet Woonsocket - RR
A1: Rent Roll (cb)
A2: Exported On: 12/07/2025 09:11 AM
A4: 19 Chester Street, 30 Cote Avenue, 31-37 Mechanic Avenue, 302 314 Pond Street, 228 230 West Street
A5: As of: 1/07/2026
A7: Unit | B7: BD/BA | C7: Market Rent | D7: Rent
A8: Chester Street (19)-N - 19 Chester Street Woonsocket, RI 02895
A9: 1F | B9: 1/1.00 | C9: 1495 | D9: 1395
A10: 1R | B10: 2/1.00 | C10: 1600 | D10: 1495
A11: 2F | B11: 1/1.00 | C11: 1495 | D11: 1495
A12: 2R | B12: 2/1.00 | C12: 1600 | D12: 1450
A13: 3F | B13: 1/1.00 | C13: 1495 | D13: 1395
A14: 3R | B14: 2/1.00 | C14: 1600 | D14: 1350
A15: 6 Units | C15: =SUM(C9:C14) -> 9285 | D15: =SUM(D9:D14) -> 8580
A16: Cote Avenue (30)-N - 30 Cote Avenue Woonsocket, RI 02895
A17: Unit 1 | B17: 3/1.00 | C17: 1850 | D17: 1750
A18: Unit 2F | B18: 2/1.00 | C18: 1600 | D18: 1495
A19: Unit 2R | B19: 2/1.00 | C19: 1600 | D19: 1550
A20: Unit 3F | B20: 2/1.00 | C20: 1600 | D20: 1550
A21: Unit 3R | B21: --/-- | C21: 1600 | D21: 1550
A22: 5 Units | C22: =SUM(C17:C21) -> 8250 | D22: =SUM(D17:D21) -> 7895
A23: Mechanic Avenue (31-37) -N - 31-37 Mechanic Avenue Woonsocket, RI 02895
A24: 31 - unit 1L | B24: 2/1.00 | C24: 1650 | D24: 1495
A25: 31 - unit 1R | B25: 2/1.00 | C25: 1650 | D25: 1545
A26: 31 - unit 2L | B26: 2/1.00 | C26: 1650 | D26: 1545
A27: 31 - Unit 2R | B27: 2/1.00 | C27: 1650 | D27: 1550
A28: 37 - unit 1L | B28: 2/1.00 | C28: 1650 | D28: 1550
A29: 37 - unit 1R | B29: 2/1.00 | C29: 1650 | D29: 1550
A30: 37 -Unit 2L | B30: 2/1.00 | C30: 1650 | D30: 1495
A31: 37- unit 2R | B31: 2/1.00 | C31: 1650 | D31: 1450
A32: 8 Units | C32: =SUM(C24:C31) -> 13200 | D32: =SUM(D24:D31) -> 12180
A33: Pond Street (302)-N - 302 Pond Street Woonsocket, RI 02895
A34: 1A | B34: 2/1.00 | C34: 1650 | D34: 1550
A35: 1B | B35: 2/1.00 | C35: 1650 | D35: 1550
A36: 2A | B36: 2/1.00 | C36: 1650 | D36: 1550
A37: 2B | B37: 2/1.00 | C37: 1650 | D37: 1550
A38: 3A | B38: 1/1.00 | C38: 1400 | D38: 1195
A39: 3B | B39: 1/1.00 | C39: 1400 | D39: 1325
A40: 6 Units | C40: =SUM(C34:C39) -> 9400 | D40: =SUM(D34:D39) -> 8720
A41: West School Street (228-230) -N - 230 West School Street Woonsocket, RI 02895
A42: 228- Unit 2 | B42: --/-- | C42: 1850 | D42: 1760
A43: 228- Unit 3 | B43: 1/1.00 | C43: 1450 | D43: 1395
A44: 228- Unit 4 | B44: 1/1.00 | C44: 1450 | D44: 1250
A45: 228- Unit 5 | B45: --/-- | C45: 1600 | D45: 1550
A46: 228-Basement | B46: 1/1.00 | C46: 1450 | D46: 1350
A47: 230- Unit 2 | B47: 1/1.00 | C47: 1450 | D47: 1235
A48: 230- Unit 3 | B48: 4/2.00 | C48: 1850 | D48: 1850
A49: 230- Unit 4 | B49: --/-- | C49: 1840 | D49: 1840
A50: 230- Unit 5 | B50: 2/1.00 | C50: 1600 | D50: 1495
A51: 230-Unit 1 | B51: --/1.00 | C51: 1350 | D51: 979
A52: 10 Units | C52: =SUM(C42:C51) -> 15890 | D52: =SUM(D42:D51) -> 14704
A54: Pond Street (314) - 314 Pond Street Woonsocket, RI 02895
A55: Unit 1 Front | B55: 2 1 | C55: 1800 | D55: 1800 | E55: Renovation Complete March 1, 2026
A56: Unit 1 Rear | B56: 3 2 | C56: 2200 | D56: 2200
A57: Unit 2L | B57: 2 1 | C57: 1800 | D57: 1800
A58: Unit 2R | B58: 2 1 | C58: 1800 | D58: 1800
A59: Unit 3L | B59: 2 1 | C59: 1800 | D59: 1800
A60: Unit 3R | B60: 2 1 | C60: 1800 | D60: 1800
A61: 6 Unita | C61: =SUM(C55:C60) -> 11200 | D61: =SUM(D55:D60) -> 11200
A63: Total 41 Units | C63: =C52+C40+C32+C22+C15+C61 -> 67225 | D63: =D52+D40+D32+D22+D15+D61 -> 63279

Sheet Woonsocket P&L
A1: Woonsocket, RI Portfolio
A2: 41 Units
A3: 19 Chester Street, 30 Cote Avenue, 31-37 Mechanic Avenue, 302 314 Pond Street, 228 230 West Street
C7: Current | E7: Market
A10: Gross Rents | C10: ='Woonsocket - RR'!$D$63*12 -> 759348 | E10: ='Woonsocket - RR'!$C$63*12 -> 806700
A11: Less: Vacancy (5%) | C11: =-C10*0.05 -> -37967.4 | E11: =-E10*0.05 -> -40335
A13: Net Rental Income | C13: =SUM(C10:C12) -> 721380.6 | E13: =SUM(E10:E12) -> 766365
A15: Other Income:
A16: Pet Fees | C16: 0 | E16: =+C16 -> 0
A17: Laundry Income | C17: 3234 | E17: 3234
A19: Gross Revenue | C19: =SUM(C12:C18) -> 724614.6 | E19: =SUM(E12:E18) -> 769599
A22: Operating Expenses: | H22: Annual Taxes
A23: Real Estate Taxes | C23: =SUM(J23:J28) -> 38969 | E23: =C23 -> 38969 | H23: 19 Chester | J23: 5313
A24: Insurance | C24: 23980 | E24: 23980 | H24: 30 Cote | J24: 6141
A25: Sewer and Water | C25: 23379 | E25: 23379 | H25: 31 37 Mechanic | J25: 7687
A26: Heat | C26: 18774 | E26: 18774 | H26: 302 Pond | J26: 5959
A27: Electricity | C27: 10152 | E27: 10152 | H27: 314 Pond | J27: 4363
A28: Management Fee (5%) | C28: =+C19*0.05 -> 36230.73 | E28: =+E19*0.05 -> 38479.95 | H28: 228 230 West School Street | J28: 9506 | N28: =E31/E19 -> 0.2497585106
A29: Repair and Maintenance (5%) | C29: =+C19*0.05 -> 36230.73 | E29: =+E19*0.05 -> 38479.95
A31: Total Operating Expenses | C31: =SUM(C22:C30) -> 187715.46 | E31: =SUM(E22:E30) -> 192213.9
A33: Net Operating Income | C33: =+C13-C31 -> 533665.14 | E33: =+E13-E31 -> 574151.1
A36: Valuation | C36: 5995000 | E36: 5995000
A37: Cap Rate | C37: =+C33/C36 -> 0.08901837198 | E37: =+E33/E36 -> 0.09577165972
A38: Value Per Unit | C38: =+C36/41 -> 146219.5122 | E38: =+E36/41 -> 146219.5122
